bitfinex-derivatives/quotes_BTCF0:USTF0_20251118
["timestamp","ask_amount","ask_price","bid_price","bid_amount"]
[1763485185388,0.25916,93551.0,93550.0,0.10917003]
[1763485185589,0.25916,93551.0,93550.0,0.00219803]
[1763485185784,0.002,93552.0,93550.0,0.10917033]
[1763485186098,0.25916,93551.0,93550.0,0.10917033]
[1763485186295,0.26016,93551.0,93550.0,0.10917033]
[1763485186493,0.002,93551.0,93550.0,0.10917033]
[1763485186694,0.26116,93551.0,93550.0,0.10917033]
[1763485186888,0.26016,93551.0,93550.0,0.13114033]
[1763485187092,0.26016,93551.0,93550.0,0.49194033]
[1763485188091,0.25916,93551.0,93550.0,0.51389033]
[1763485188499,0.002,93552.0,93551.0,0.04392]
[1763485188797,0.25916,93552.0,93551.0,0.04392]
[1763485189601,0.3671303,93552.0,93551.0,0.04392]
[1763485189997,0.26016,93552.0,93551.0,0.04392]
[1763485190503,0.3671303,93552.0,93551.0,0.04392]
[1763485190692,0.3671303,93552.0,93550.0,0.36299803]
[1763485190892,0.1089703,93552.0,93550.0,0.36299803]
[1763485191101,0.1089703,93552.0,93550.0,0.49194043]
[1763485191102,0.002,93552.0,93550.0,0.49194043]
[1763485191291,0.25912,93551.0,93550.0,0.49194043]
[1763485191494,0.25912,93551.0,93550.0,0.51389043]
[1763485191801,0.25912,93551.0,93550.0,0.40691803]
[1763485192002,0.25912,93551.0,93550.0,0.36299803]
[1763485192203,0.25912,93551.0,93550.0,0.40691803]
[1763485192703,0.26112,93551.0,93550.0,0.40691803]
[1763485195399,0.002,93551.0,93550.0,0.40691803]
[1763485200296,0.002,93551.0,93550.0,0.40933803]
[1763485200807,0.002,93551.0,93550.0,0.04853803]
[1763485201305,0.11458405,93560.0,93559.0,0.1533023]
[1763485201306,1e-08,93560.0,93559.0,0.1533023]
[1763485201499,0.3608,93593.0,93587.0,0.04634]
[1763485201701,0.25908,93589.0,93588.0,0.04634]
[1763485201896,0.25908,93589.0,93576.0,0.01335]
[1763485201897,0.1069417,93577.0,93576.0,0.01335]
[1763485202205,0.1069691,93553.0,93552.0,0.01335]
[1763485202505,0.61988,93553.0,93550.0,0.00219803]
[1763485202703,0.1069703,93552.0,93550.0,0.04853803]
[1763485202904,0.1069783,93545.0,93543.0,0.00016028]
[1763485203107,0.3608,93544.0,93543.0,0.00016028]
[1763485203508,0.3608,93544.0,93543.0,0.04650028]
[1763485204003,0.7216,93544.0,93543.0,0.00016028]
[1763485204405,0.7216,93544.0,93534.0,0.45]
[1763485204597,0.7216,93544.0,93534.0,0.4195514]
[1763485204598,0.4677897,93535.0,93534.0,0.4195514]
[1763485204805,0.1070069,93520.0,93519.0,0.03653]
[1763485205104,0.1070069,93520.0,93519.0,0.01335]
[1763485205105,1.0876869,93520.0,93519.0,0.01335]
[1763485205407,0.25908,93520.0,93519.0,0.05969]
[1763485205712,0.10715722,93529.0,93528.0,0.04634]
[1763485205913,0.25924022,93529.0,93528.0,0.04634]
[1763485207499,0.36623682,93529.0,93528.0,0.04634]
[1763485207699,0.25924022,93529.0,93528.0,0.04634]
[1763485207900,0.3608,93558.0,93557.0,0.04634]
[1763485208104,0.7268438,93558.0,93557.0,0.04634]
[1763485208505,0.61988,93558.0,93557.0,0.04634]
[1763485208814,0.61988,93558.0,93550.0,0.05969]
[1763485209012,0.3608,93557.0,93550.0,0.06188803]
[1763485209209,0.1069714,93551.0,93550.0,0.06188803]
[1763485210506,0.1079714,93551.0,93550.0,0.06188803]
[1763485210705,0.1079714,93551.0,93500.0,0.38414999]
[1763485210706,0.40219803,93550.0,93500.0,0.38414999]
[1763485210902,0.40219803,93550.0,93489.0,0.01335]
[1763485210903,0.1070403,93491.0,93490.0,0.0202724]
[1763485211112,0.25908,93491.0,93490.0,0.04418507]
[1763485211713,0.26595,93491.0,93490.0,0.04418507]
[1763485211906,0.27391052,93491.0,93490.0,0.00073267]
[1763485212103,0.25817052,93491.0,93490.0,0.04707267]
[1763485212307,0.26604052,93491.0,93490.0,0.04707267]
[1763485212507,0.25817052,93491.0,93490.0,0.04707267]
[1763485213117,0.36521062,93491.0,93490.0,0.04707267]
[1763485213512,0.38095062,93491.0,93490.0,0.04707267]
[1763485214210,0.1227904,93482.0,93481.0,0.04650037]
[1763485214407,0.36867,93482.0,93481.0,0.04650037]
[1763485215108,0.37654,93482.0,93481.0,0.00016037]
[1763485215419,0.3608,93482.0,93481.0,0.04650037]
[1763485216213,0.61992,93482.0,93481.0,0.04650037]
[1763485216416,0.62779,93482.0,93481.0,0.04650037]
[1763485216802,0.61992,93482.0,93481.0,0.04650037]
[1763485217113,9.052e-05,93491.0,93490.0,0.04634]
[1763485217313,9.052e-05,93491.0,93490.0,0.04707267]
[1763485218321,0.01583052,93491.0,93490.0,0.04707267]
[1763485218615,9.052e-05,93491.0,93490.0,0.15411387]
[1763485218917,9.052e-05,93491.0,93490.0,0.04707267]
[1763485220307,9.052e-05,93491.0,93490.0,0.04807267]
[1763485221618,0.22425052,93494.0,93493.0,0.04553]
[1763485222918,0.60784052,93494.0,93493.0,0.04553]
[1763485223219,0.58505052,93494.0,93493.0,0.1525678]
[1763485223516,0.58505052,93494.0,93493.0,0.04553]
[1763485224118,0.22425052,93494.0,93493.0,0.04553]
[1763485224612,0.01016036,93500.0,93499.0,0.1525609]
[1763485224817,0.00016037,93500.0,93499.0,0.1525609]
[1763485225214,0.25916,93507.0,93506.0,0.1525529]
[1763485225416,0.30427,93507.0,93506.0,0.04553]
[1763485225804,0.30427,93507.0,93506.0,0.1525529]
[1763485229117,0.04511,93507.0,93506.0,0.1525529]
[1763485229317,0.3608,93522.0,93521.0,0.04571]
[1763485229518,0.3608,93537.0,93525.0,0.04571]
[1763485229718,0.3661531,93533.0,93525.0,0.40651]
[1763485229911,0.25916,93533.0,93525.0,0.40651]
[1763485230517,0.25916,93533.0,93520.0,0.01461267]
[1763485230518,0.36106731,93526.0,93520.0,0.01461267]
[1763485230718,0.1524558,93521.0,93520.0,0.02339267]
[1763485230923,0.1524558,93521.0,93520.0,0.06032267]
[1763485231126,0.1524558,93521.0,93520.0,0.04644267]
[1763485231329,0.1524558,93521.0,93520.0,0.06032267]
[1763485231528,0.1524558,93521.0,93520.0,0.04644267]
[1763485231931,0.1524558,93521.0,93520.0,0.00073267]
[1763485232122,0.5132558,93521.0,93520.0,0.00073267]
[1763485232623,0.1524649,93513.0,93512.0,0.00016046]
[1763485232823,0.7724249,93513.0,93512.0,0.00016046]
[1763485233519,0.04545,93494.0,93493.0,0.5135478]
[1763485234029,0.04545,93500.0,93499.0,0.04571]
[1763485234214,0.04764803,93500.0,93499.0,0.04571]
[1763485234621,0.3608,93523.0,93493.0,0.3608]
[1763485234622,0.25916,93514.0,93512.0,0.1527261]
[1763485235518,0.25916,93514.0,93512.0,0.04571]
[1763485235519,0.38351,93513.0,93512.0,0.04571]
[1763485235720,0.04545,93511.0,93510.0,0.00073267]
[1763485236120,0.04545,93511.0,93510.0,0.04644267]
[1763485236629,0.3608,93513.0,93512.0,0.04571]
[1763485236923,0.61996,93513.0,93512.0,0.04571]
[1763485237521,0.64267,93513.0,93512.0,0.04571]
[1763485237921,0.61996,93513.0,93512.0,0.04571]
[1763485238125,0.3608,93513.0,93512.0,0.04571]
[1763485238821,0.5132649,93513.0,93512.0,0.04571]
[1763485240432,0.40625,93513.0,93512.0,0.1527261]
[1763485240818,0.40625,93513.0,93512.0,0.04571]
[1763485241228,0.40625,93513.0,93512.0,0.1527261]
[1763485241630,0.3608,93513.0,93512.0,0.1527261]
[1763485242517,0.25916,93516.0,93515.0,0.1527226]
[1763485242718,0.4116215,93516.0,93515.0,0.04571]
[1763485242934,0.25916,93516.0,93515.0,0.04571]
[1763485243528,0.10920493,93520.0,93519.0,0.04571]
[1763485243732,0.00219803,93520.0,93519.0,0.1527181]
[1763485243924,0.04764803,93520.0,93519.0,0.1527181]
[1763485244124,0.15465493,93520.0,93519.0,0.04571]
[1763485244323,0.04764803,93520.0,93519.0,0.04571]
[1763485245227,0.25912,93521.0,93520.0,0.15344957]
[1763485246234,0.00016046,93522.0,93521.0,0.04571]
[1763485246235,0.51341576,93522.0,93521.0,0.04571]
[1763485246940,0.40641046,93522.0,93521.0,0.04571]
[1763485247435,0.00016046,93522.0,93521.0,0.04571]
[1763485248737,0.04561046,93522.0,93521.0,0.04571]
[1763485249137,0.00016046,93522.0,93521.0,0.04571]
[1763485250239,0.25912,93534.0,93525.0,0.1527112]
[1763485250539,0.1069979,93528.0,93525.0,0.1527112]
[1763485251041,0.25912,93534.0,93525.0,0.1527112]
[1763485251538,0.00126731,93526.0,93525.0,0.1527112]
[1763485256140,0.00999999,93540.0,93538.0,0.1526963]
[1763485256341,0.04287,93561.0,93560.0,0.1665512]
[1763485256537,0.04032,93567.0,93566.0,0.04571]
[1763485256730,0.04032,93561.0,93560.0,0.05959]
[1763485256946,0.04032,93561.0,93560.0,0.03727267]
[1763485257350,0.04032,93561.0,93560.0,0.00073267]
[1763485258058,0.04032,93561.0,93560.0,0.05963267]
[1763485258259,0.04232,93561.0,93560.0,0.02391267]
[1763485258555,0.04232,93561.0,93560.0,0.00073267]
[1763485260048,0.04232,93561.0,93560.0,0.03714267]
[1763485260248,0.002,93561.0,93560.0,0.05963267]
[1763485260656,0.02216,93561.0,93560.0,0.05963267]
[1763485261250,0.04232,93561.0,93560.0,0.05963267]
[1763485261755,0.04232,93561.0,93560.0,0.00073267]
[1763485261956,0.1472903,93552.0,93551.0,3.7e-07]
[1763485262156,0.1070021,93525.0,93522.0,0.04567]
[1763485262347,0.04,93511.0,93510.0,0.03641]
[1763485262545,0.04,93511.0,93510.0,0.0589]
[1763485262751,0.14305312,93520.0,93500.0,0.01323]
[1763485262752,0.04,93507.0,93500.0,0.01323]
[1763485263057,0.04,93490.0,93489.0,0.3608]
[1763485263249,0.04219803,93490.0,93489.0,0.3608]
[1763485263557,0.04219803,93490.0,93480.0,0.10721237]
[1763485263558,0.036,93481.0,93480.0,0.00016037]
[1763485263749,0.1420516,93481.0,93480.0,0.00016037]
[1763485263953,0.14214715,93481.0,93480.0,0.00016037]
[1763485264154,0.14214715,93481.0,93480.0,0.04583037]
[1763485264155,9.555e-05,93481.0,93480.0,0.04583037]
[1763485264353,0.36096046,93490.0,93489.0,0.1527124]
[1763485264354,0.00016046,93490.0,93489.0,0.1527124]
[1763485264652,0.25916,93507.0,93496.0,0.01323]
[1763485264859,0.034,93497.0,93496.0,0.01323]
[1763485265459,0.034,93490.0,93489.0,0.3608]
[1763485265662,0.03619803,93490.0,93489.0,0.3608]
[1763485266547,0.034,93487.0,93486.0,0.00026742]
[1763485267158,0.033,93487.0,93486.0,0.00026742]
[1763485268260,0.00219803,93490.0,93489.0,0.02318]
[1763485268459,0.00219803,93490.0,93489.0,0.04567]
[1763485268659,0.26135803,93490.0,93489.0,0.04567]
[1763485268855,0.29335803,93490.0,93489.0,0.02318]
[1763485269367,0.29335803,93490.0,93489.0,0.04567]
[1763485269550,0.032,93487.0,93486.0,0.00026742]
[1763485271165,0.032,93487.0,93486.0,0.04593742]
[1763485271358,0.00219803,93490.0,93489.0,0.04567]
[1763485271558,0.00219803,93490.0,93486.0,0.00026742]
[1763485271559,0.032,93487.0,93486.0,0.00026742]
[1763485272061,0.016,93487.0,93486.0,0.04593742]
[1763485272459,0.032,93487.0,93486.0,0.00026742]
[1763485273560,0.00219803,93490.0,93489.0,0.1527124]
[1763485273766,0.3608,93499.0,93498.0,0.1527021]
[1763485274267,0.26135803,93500.0,93499.0,0.04567]
[1763485274455,0.29335803,93500.0,93499.0,0.04567]
[1763485274660,0.1390379,93493.0,93492.0,0.3608]
[1763485275061,0.032,93487.0,93480.0,0.00016037]
[1763485275261,0.032,93487.0,93486.0,0.02344742]
[1763485276566,0.032,93487.0,93486.0,0.04693742]
[1763485276766,0.2592,93489.0,93488.0,0.04567]
[1763485276964,0.2912,93489.0,93488.0,0.04567]
[1763485277269,0.2912,93489.0,93486.0,0.00126742]
[1763485277270,0.032,93487.0,93486.0,0.00126742]
[1763485277672,0.032,93487.0,93486.0,0.00110702]
[1763485277861,0.032,93487.0,93480.0,0.00016037]
[1763485278066,0.032,93487.0,93456.0,0.3608]
[1763485278067,0.032,93467.0,93459.0,0.1070761]
[1763485278265,0.032,93467.0,93456.0,0.4678797]
[1763485278468,0.032,93467.0,93459.0,0.107076]
[1763485278664,0.26135803,93470.0,93458.0,0.3608]
[1763485278970,0.27735803,93470.0,93469.0,0.40647]
[1763485279164,0.00219803,93470.0,93469.0,0.40647]
[1763485280077,0.00219803,93470.0,93469.0,0.04567]
[1763485280277,0.03419803,93470.0,93469.0,0.02318]
[1763485280571,0.03419803,93470.0,93458.0,0.3608]
[1763485280572,0.016,93465.0,93464.0,0.02273]
[1763485280777,0.032,93465.0,93464.0,0.02273]
[1763485281676,0.032,93465.0,93464.0,0.02373]
[1763485281875,0.2592,93466.0,93465.0,0.15176]
[1763485282874,0.3608,93483.0,93465.0,0.15176]
[1763485282875,0.3608,93509.0,93508.0,0.04469]
[1763485283093,0.00219803,93510.0,93509.0,0.05826]
[1763485283272,0.01835803,93510.0,93509.0,0.05826]
[1763485283582,0.03451803,93510.0,93509.0,0.37437]
[1763485283770,0.03451803,93510.0,93500.0,0.3608]
[1763485283972,0.17757115,93510.0,93500.0,0.3608]
[1763485284175,0.03451803,93510.0,93509.0,0.04469]
[1763485284578,0.03232,93507.0,93500.0,0.3608]
[1763485285091,0.00219803,93510.0,93509.0,0.04469]
[1763485285380,0.3608,93536.0,93520.0,0.01357]
[1763485285591,0.00219803,93530.0,93529.0,0.04469]
[1763485285969,0.01835803,93530.0,93529.0,0.04469]
[1763485286968,0.01935803,93530.0,93529.0,0.04469]
[1763485287478,0.00319803,93530.0,93529.0,0.04469]
[1763485287782,0.2592,93535.0,93534.0,0.05599]
[1763485288178,0.61996,93542.0,93541.0,0.04303]
[1763485288581,0.25916,93542.0,93541.0,0.04303]
[1763485288880,0.25916,93542.0,93540.0,0.00219803]
[1763485288881,0.139303,93541.0,93540.0,0.00219803]
[1763485289086,0.01616,93535.0,93534.0,0.01296]
[1763485289284,0.03232,93535.0,93534.0,0.03413]
[1763485289483,0.25916,93542.0,93541.0,0.02117]
[1763485289676,0.25916,93542.0,93541.0,0.04303]
[1763485289876,0.29148,93542.0,93541.0,0.04303]
[1763485290086,0.27532,93542.0,93541.0,0.04303]
[1763485290278,0.61996,93554.0,93541.0,0.04303]
[1763485290487,0.61996,93554.0,93540.0,0.36299803]
[1763485290488,0.00073267,93550.0,93548.0,0.01296]
[1763485290679,0.00073267,93550.0,93540.0,0.36299803]
[1763485290885,0.03232,93541.0,93540.0,0.00219803]
[1763485291272,0.1069786,93545.0,93540.0,0.04522803]
[1763485291473,0.25075879,93550.0,93544.0,0.04303]
[1763485291678,0.03232,93545.0,93544.0,0.04303]
[1763485291978,0.03232,93541.0,93540.0,0.00219803]
[1763485292487,0.03232,93541.0,93540.0,0.02336803]
[1763485292790,0.03232,93541.0,93540.0,0.04522803]
[1763485294077,0.03232,93541.0,93540.0,0.00219803]
[1763485294279,0.65224,93541.0,93540.0,0.00219803]
[1763485294985,0.03232,93539.0,93538.0,0.00016037]
[1763485295389,0.10918223,93540.0,93520.0,0.03474]
[1763485295390,0.01616,93521.0,93520.0,0.03474]
[1763485295691,0.01616,93521.0,93520.0,0.0566]
[1763485296281,0.4677992,93527.0,93520.0,0.163607]
[1763485296887,0.1070026,93524.0,93523.0,0.04303]
[1763485297088,0.1393226,93524.0,93523.0,0.04303]
[1763485297487,0.03232,93524.0,93523.0,0.04303]
[1763485298095,0.00016019,93530.0,93529.0,0.04303]
[1763485298285,0.00235822,93530.0,93529.0,0.04303]
[1763485298884,0.03232,93524.0,93523.0,0.40483]
[1763485299085,0.00016019,93530.0,93529.0,0.1500267]
[1763485299288,1.9e-07,93530.0,93529.0,0.1500267]
[1763485300290,1.9e-07,93530.0,93529.0,0.04303]
[1763485301283,0.25908,93547.0,93546.0,0.04303]
[1763485301484,0.3660561,93547.0,93546.0,0.04303]
[1763485301692,0.3823761,93547.0,93546.0,0.04303]
[1763485301893,0.3986961,93547.0,93546.0,0.04303]
[1763485302592,0.03264,93538.0,93537.0,0.00016037]
[1763485305501,0.03264,93538.0,93537.0,0.02133037]
[1763485305893,0.03264,93538.0,93537.0,0.00016037]
[1763485306200,0.03264,93520.0,93507.0,0.4678208]
[1763485306499,0.1396608,93508.0,93507.0,0.3608]
[1763485306687,0.1070311,93499.0,93498.0,0.40383]
[1763485306893,0.1396711,93499.0,93498.0,0.3608]
[1763485307087,0.03264,93491.0,93476.0,0.467857]
[1763485307294,0.03064,93491.0,93489.0,0.00016037]
[1763485308501,0.02964,93491.0,93489.0,0.00016037]
[1763485311289,0.02964,93491.0,93490.0,0.02129497]
[1763485311596,0.25908,93493.0,93490.0,0.02129497]
[1763485311597,0.14305312,93510.0,93507.0,0.04303]
[1763485311791,0.27260037,93508.0,93507.0,0.04303]
[1763485312908,0.28592037,93508.0,93507.0,0.04303]
[1763485313204,0.27260037,93508.0,93507.0,0.04303]
[1763485313396,0.25928037,93508.0,93507.0,0.04303]
[1763485314491,0.28592037,93508.0,93507.0,0.04303]
[1763485315994,0.01332,93498.0,93497.0,0.40383]
[1763485316194,0.00219803,93500.0,93499.0,0.04303]
[1763485319002,0.25928037,93508.0,93507.0,0.04285]
[1763485319209,0.25928037,93508.0,93507.0,0.40365]
[1763485319403,0.4678022,93525.0,93524.0,0.04473]
[1763485319608,0.7269222,93525.0,93524.0,0.04473]
[1763485319999,0.61992,93525.0,93524.0,0.04473]
[1763485320307,0.05,111970.0,93524.0,0.04473]
[1763485320308,0.3608,93543.0,93542.0,0.1517119]
[1763485320508,0.05572,93564.0,93563.0,0.1069579]
[1763485320719,0.01285,93564.0,93563.0,0.1069579]
[1763485320924,0.01167,93576.0,93575.0,0.1069441]
[1763485321124,0.05454,93576.0,93575.0,0.3608]
[1763485321322,0.2592,93595.0,93587.0,0.1069304]
[1763485321517,0.2592,93595.0,93587.0,0.4677304]
[1763485321824,0.04287,93598.0,93597.0,0.1069181]
[1763485322022,0.04287,93598.0,93597.0,0.4677181]
[1763485322421,0.04287,93598.0,93597.0,0.3608]
[1763485323527,0.04287,93588.0,93587.0,0.3608]
[1763485324026,0.04387,93588.0,93587.0,0.3608]
[1763485324428,0.02277,93588.0,93587.0,0.3608]
[1763485324629,0.01504803,93590.0,93588.0,0.1069293]
[1763485325014,0.01285,93590.0,93588.0,0.1069293]
[1763485325327,0.01386803,93600.0,93594.0,0.1069216]
[1763485325628,0.05673803,93600.0,93599.0,0.3608]
[1763485327417,0.05773803,93600.0,93599.0,0.3608]
[1763485327925,0.05973803,93600.0,93599.0,0.3608]
[1763485332731,0.05973803,93600.0,93587.0,0.3608]
[1763485332732,0.1497993,93588.0,93587.0,0.3608]
[1763485333621,0.1335796,93579.0,93578.0,0.00016028]
[1763485333823,0.4943796,93579.0,93578.0,0.00016028]
[1763485334027,0.1335796,93579.0,93578.0,0.00016028]
[1763485334528,0.02664,93560.0,93559.0,0.3608]
[1763485334833,0.02883803,93560.0,93559.0,0.40553]
[1763485335226,0.00219803,93560.0,93559.0,0.40553]
[1763485335432,0.02883803,93560.0,93559.0,0.40553]
[1763485336233,0.00419803,93560.0,93559.0,0.40553]
[1763485336442,0.03083803,93560.0,93559.0,0.38385]
[1763485337335,0.00419803,93560.0,93559.0,0.40553]
[1763485337723,0.002,93560.0,93559.0,0.40553]
[1763485337924,0.00015998,93569.0,93568.0,0.04473]
[1763485338230,0.00015998,93569.0,93568.0,0.40553]
[1763485338538,0.03079998,93569.0,93568.0,0.3608]
[1763485339137,0.03079998,93569.0,93568.0,0.38385]
[1763485339327,0.00015998,93569.0,93568.0,0.40553]
[1763485340836,0.01547998,93569.0,93568.0,0.40553]
[1763485341427,0.00015998,93569.0,93568.0,0.40553]
[1763485341730,0.10711098,93569.0,93568.0,0.40553]
[1763485342230,0.00015998,93569.0,93568.0,0.40553]
[1763485346240,0.03093998,93569.0,93568.0,0.40553]
[1763485346537,0.00015998,93569.0,93568.0,0.40553]
[1763485346838,0.03093998,93569.0,93568.0,0.38385]
[1763485347037,0.03093998,93569.0,93568.0,0.02305]
[1763485347038,0.39173998,93569.0,93568.0,0.02305]
[1763485347238,0.1376104,93552.0,93551.0,0.3608]
[1763485347439,0.03064,93551.0,93543.0,0.3608]
[1763485347631,0.03064,93551.0,93550.0,0.02215028]
[1763485348033,0.03064,93551.0,93550.0,0.04498028]
[1763485348237,0.25896,93552.0,93550.0,0.04498028]
[1763485348238,0.25896,93552.0,93551.0,0.04482]
[1763485348540,0.25896,93552.0,93551.0,0.40562]
[1763485351845,0.2896,93552.0,93551.0,0.3608]
[1763485352343,0.01532,93553.0,93552.0,0.03503]
[1763485352547,0.3608,93564.0,93552.0,0.01304]
[1763485352844,0.01751803,93560.0,93559.0,0.04482]
[1763485353042,0.00219803,93560.0,93559.0,0.40562]
[1763485353243,0.26119803,93560.0,93559.0,0.40562]
[1763485354845,0.27651803,93560.0,93559.0,0.40562]
[1763485355042,0.29283803,93560.0,93559.0,0.40562]
[1763485355338,0.27751803,93560.0,93559.0,0.40562]
[1763485355544,0.26219803,93560.0,93559.0,0.40562]
[1763485355945,0.27751803,93560.0,93559.0,0.04482]
[1763485356146,0.03064,93553.0,93552.0,0.01304]
[1763485356441,0.1376092,93553.0,93552.0,0.01304]
[1763485356743,0.1069624,93559.0,93558.0,0.02283]
[1763485357043,0.26,93560.0,93559.0,0.04482]
[1763485357044,0.00319803,93560.0,93559.0,0.04482]
[1763485357244,0.26119803,93560.0,93559.0,0.40562]
[1763485357443,0.26219803,93560.0,93559.0,0.40562]
[1763485358038,0.29283803,93560.0,93559.0,0.40562]
[1763485358244,0.29283803,93560.0,93559.0,0.04482]
[1763485358445,0.03064,93553.0,93552.0,0.03503]
[1763485358645,0.1376092,93553.0,93552.0,0.03503]
[1763485358842,0.1376092,93553.0,93552.0,0.05786]
[1763485359039,0.03064,93551.0,93550.0,0.36096028]
[1763485359248,0.1069692,93553.0,93552.0,0.05786]
[1763485359638,0.3976012,93560.0,93559.0,0.04482]
[1763485359838,0.1069692,93553.0,93552.0,0.05786]
[1763485361047,0.1069665,93556.0,93555.0,0.02283]
[1763485361239,0.1069665,93556.0,93555.0,0.04482]
[1763485361439,0.1376065,93556.0,93555.0,0.04482]
[1763485362241,0.1386065,93556.0,93555.0,0.04482]
[1763485362550,0.001,93556.0,93555.0,0.04482]
[1763485366055,0.00015998,93569.0,93567.0,0.04482]
[1763485366056,0.3659524,93568.0,93567.0,0.04482]
[1763485366251,0.1395999,93562.0,93561.0,0.04482]
[1763485367248,0.03264,93562.0,93561.0,0.04482]
[1763485367451,0.3995921,93568.0,93567.0,0.04482]
[1763485367837,0.3985921,93568.0,93567.0,0.04482]
[1763485368141,0.27532,93568.0,93567.0,0.04482]
[1763485368346,0.29164,93568.0,93567.0,0.04482]
[1763485368953,0.03264,93568.0,93567.0,0.04482]
[1763485369153,0.10711168,93569.0,93568.0,0.04482]
[1763485369451,0.25915998,93569.0,93568.0,0.40562]
[1763485369654,0.27547998,93569.0,93568.0,0.40562]
[1763485370039,0.3608,93581.0,93568.0,0.40562]
[1763485370245,0.26119803,93580.0,93579.0,0.40562]
[1763485371546,0.259,93580.0,93579.0,0.40562]
[1763485371754,0.106922,93595.0,93594.0,0.04482]
[1763485371947,0.398882,93595.0,93594.0,0.04482]
[1763485372347,0.139882,93595.0,93594.0,0.04482]
[1763485372549,0.398882,93595.0,93594.0,0.04482]
[1763485372750,0.398842,93595.0,93594.0,0.04482]
[1763485373340,0.400842,93595.0,93594.0,0.04482]
[1763485374154,0.402842,93595.0,93594.0,0.04482]
[1763485375647,0.1398881,93589.0,93588.0,0.05786]
[1763485375845,0.1069384,93580.0,93579.0,0.3608]
[1763485376157,0.00219803,93580.0,93579.0,0.40562]
[1763485377246,0.00319803,93580.0,93579.0,0.40562]
[1763485378558,0.00419803,93580.0,93579.0,0.40562]
[1763485379660,0.25896,93582.0,93579.0,0.40562]
[1763485379845,0.22815803,93582.0,93581.0,0.04457]
[1763485380449,0.27116803,93582.0,93581.0,0.04457]
[1763485380651,0.22815803,93582.0,93581.0,0.04457]
[1763485381354,0.22815803,93582.0,93571.0,0.3608]
[1763485381355,0.1499575,93572.0,93571.0,0.3608]
[1763485381561,0.04301,93571.0,93559.0,0.3608]
[1763485381857,0.04301,93571.0,93560.0,0.00219803]
[1763485383254,0.30193,93571.0,93560.0,0.00219803]
[1763485383554,0.30193,93571.0,93541.0,0.3608]
[1763485383555,0.04301,93550.0,93549.0,0.40537]
[1763485383759,0.40963537,93550.0,93549.0,0.40537]
[1763485384749,0.40963537,93550.0,93540.0,0.01351028]
[1763485384750,0.149993,93541.0,93540.0,0.00016028]
[1763485384948,0.1500033,93532.0,93531.0,0.3608]
[1763485385155,0.04301,93532.0,93531.0,0.40537]
[1763485385353,0.14291464,93550.0,93540.0,0.05792]
[1763485385548,0.00073267,93550.0,93548.0,0.02294]
[1763485385849,0.00073267,93550.0,93549.0,0.04457]
[1763485386054,0.25965267,93550.0,93549.0,0.04457]
[1763485386651,0.25969267,93550.0,93549.0,0.04457]
[1763485387059,0.26069267,93550.0,93549.0,0.04457]
[1763485387362,0.30370267,93550.0,93549.0,0.04457]
[1763485387565,0.04301,93545.0,93544.0,0.40537]
[1763485387863,0.04301,93541.0,93540.0,0.0469284]
[1763485389267,0.04301,93541.0,93540.0,0.0023584]
[1763485389653,0.04301,93541.0,93540.0,0.00016037]
[1763485391066,0.04401,93541.0,93540.0,0.00016037]
[1763485391661,0.04301,93541.0,93540.0,0.00016037]
[1763485391856,0.04401,93541.0,93540.0,0.00016037]
[1763485392256,0.04401,93541.0,93540.0,3.7e-07]
[1763485392860,0.04401,93541.0,93540.0,0.02163037]
[1763485393360,0.04401,93541.0,93540.0,3.7e-07]
[1763485393561,0.30197,93541.0,93540.0,3.7e-07]
[1763485393766,0.25996,93541.0,93540.0,3.7e-07]
[1763485394365,0.26,93541.0,93540.0,3.7e-07]
[1763485395158,0.001,93541.0,93540.0,3.7e-07]
[1763485395464,0.26,93541.0,93540.0,3.7e-07]
[1763485395658,0.30301,93541.0,93540.0,0.0467684]
[1763485396160,0.26,93541.0,93540.0,3.7e-07]
[1763485396764,0.259,93541.0,93540.0,3.7e-07]
[1763485397069,0.26,93541.0,93540.0,3.7e-07]
[1763485397962,0.259,93541.0,93540.0,3.7e-07]
[1763485398152,0.30301,93541.0,93540.0,0.04457037]
[1763485398358,0.30301,93541.0,93540.0,0.0467684]
[1763485399258,0.001,93541.0,93540.0,0.4209184]
[1763485399658,0.26,93541.0,93540.0,0.4209184]
[1763485399865,0.28122,93541.0,93540.0,0.4209184]
[1763485400068,0.30201,93541.0,93540.0,0.4209184]
[1763485400267,0.30301,93541.0,93540.0,0.4209184]
[1763485400761,0.30301,93541.0,93540.0,0.3629984]
[1763485401154,0.30301,93541.0,93540.0,0.4197584]
[1763485401756,0.30301,93541.0,93540.0,0.0021984]
[1763485401954,0.26,93541.0,93540.0,3.7e-07]
[1763485403161,0.30475,93541.0,93540.0,0.0461684]
[1763485403571,0.30475,93541.0,93540.0,0.0021984]
[1763485403868,0.26,93541.0,93540.0,3.7e-07]
[1763485405763,0.26,93541.0,93540.0,0.0245884]
[1763485405764,0.30475,93541.0,93540.0,0.0245884]
[1763485406071,0.30475,93541.0,93540.0,0.0021984]
[1763485406663,0.04575,93541.0,93540.0,0.4197584]
[1763485406878,0.26,93541.0,93540.0,0.4197584]
[1763485407074,0.30475,93541.0,93540.0,0.4197584]
[1763485407265,0.30475,93541.0,93540.0,0.0589584]
[1763485407566,0.30475,93541.0,93540.0,0.0461684]
[1763485407770,0.30475,93541.0,93540.0,3.7e-07]
[1763485407771,0.26,93541.0,93540.0,3.7e-07]
[1763485410363,0.04432,93521.0,93520.0,0.10471131]
[1763485410557,0.30332,93521.0,93520.0,0.08425934]
[1763485410962,0.3608,93535.0,93520.0,0.12068934]
[1763485411166,0.3608,93535.0,93534.0,0.04588]
[1763485411167,0.04432,93535.0,93534.0,0.04588]
[1763485411360,0.02296,93541.0,93540.0,0.05966]
[1763485411560,0.00016037,93544.0,93543.0,0.04588]
[1763485411769,0.25916037,93544.0,93543.0,0.04588]
[1763485412974,0.30348037,93544.0,93543.0,0.04588]
[1763485413161,0.04432,93541.0,93540.0,0.04807803]
[1763485413364,0.04432,93541.0,93540.0,0.06185803]
[1763485414772,0.04532,93541.0,93540.0,0.06185803]
[1763485415278,0.02396,93541.0,93540.0,0.06185803]
[1763485416985,0.04532,93541.0,93540.0,0.04807803]